Cogmind - Beta 13 @@@ ROGUE MODE // 2024.04.07 @ 20:07:10 Player: Levos Result: Destroyed by G-47 Trooper with Particle Gun Performance ------------- Evolutions (1) 500 Regions Visited (3) 600 Robots Destroyed (36) 180 Value Destroyed (926) 926 Prototype IDs (1) 20 Alien Tech Used (0) 0 Bonus (65) 65 TOTAL SCORE: 2291 Bonus ------- High Alert Combat Kills 65 Cogmind --------- Core Integrity 0/400 Matter 224/300 Energy 121/125 System Corruption 1% Temperature Hot (205) Movement Core (200) Ox3 Location -9/Storage Parts ------- > --- POWER (1) -------- Light Ion Engine > --- PROPULSION (3) --- (None) > --- UTILITY (3) ------ Small Storage Unit Visual Processing Unit > --- WEAPON (2) ------- Beam Rifle Light Assault Rifle > --- INVENTORY (8) ---- Improved Ion Engine Airjet Spread Laser Light Assault Rifle Peak State ------------ > --- POWER ------------ Improved Ion Engine > --- PROPULSION ------- Airjet Aerolev Unit Aerolev Unit > --- UTILITY ---------- Heat Sink Small Storage Unit Visual Processing Unit > --- WEAPON ----------- Heavy Assault Rifle Heavy Assault Rifle > --- INVENTORY -------- Light Ion Engine Improved Ion Engine Airjet Airjet Airjet Spread Laser Light Assault Rifle Light Assault Rifle [Rating: 22] Favorites ----------- Power Light Ion Engine Engine Light Ion Engine Propulsion Aerolev Unit Leg Aluminum Leg Wheel Wheel Hover Unit Aerolev Unit Flight Unit Flight Unit Utility Visual Processing Unit Device Heat Sink Storage Small Matter Pod Processor Visual Processing Unit Weapon Heavy Assault Rifle Energy Gun Small Laser Energy Cannon Light EM Pulse Cannon Ballistic Gun Heavy Assault Rifle Special Weapon Mining Laser Impact Weapon Flail Special Melee Weapon Datajack Build | -11 -10 -9 -9 ------- Run | Yrd Mat Mat Sto Slots Evolved 2 | . . 2 . Power . | . . . . Propulsion 1 | . . 1 . Utility 1 | . . 1 . Weapon . | . . . . Parts Attached 49 | 7 5 21 16 Power 10 | 2 1 3 4 Engine 10 | 2 1 3 4 Core . | . . . . Reactor . | . . . . Propulsion 10 | 2 2 4 2 Treads . | . . . . Leg 2 | 2 . . . Wheel 2 | . 2 . . Hover 5 | . . 3 2 Flight 1 | . . 1 . Utility 6 | 1 . 5 . Device 3 | . . 3 . Storage 2 | 1 . 1 . Processor 1 | . . 1 . Hackware . | . . . . Protection . | . . . . Artifact . | . . . . Weapon 23 | 2 2 9 10 Energy Gun 6 | 1 . 1 4 Energy Cannon 1 | . . 1 . Ballistic Gun 9 | 1 . 2 6 Ballistic Cannon . | . . . . Launcher . | . . . . Special Weapon 5 | . 2 3 . Impact Weapon 1 | . . 1 . Slashing Weapon . | . . . . Piercing Weapon . | . . . . Special Melee Weapon 1 | . . 1 . Unidentified Prototypes 1 | . . 1 . Parts Lost 22 | . 4 6 12 Power 5 | . 1 2 2 Propulsion 8 | . 1 2 5 Utility 1 | . . . 1 Weapon 8 | . 2 2 4 Highest Loss Streak 9 | . 4 4 9 To Critical Strikes . | . . . . Average Slot Usage (%) 83 | . 58 84 93 Engine 9 | . 8 10 10 Leg 1 | . 9 . . Wheel 6 | . 6 12 . Hover 14 | . . 5 29 Flight 1 | . . 4 . Device 7 | . . 8 9 Storage 11 | . 14 10 11 Processor 8 | . . 9 11 Energy Gun 3 | . 7 1 4 Energy Cannon 3 | . . 5 2 Ballistic Gun 9 | . 6 6 14 Special Weapon 2 | . 6 3 . Naked Turns . | . . . . Heaviest Build 19 | 8 8 16 19 Greatest Support 24 | 20 20 24 24 Greatest Overweight (x) 3 | . . 3 3 Average Overweight (x) . | . . . . Largest Inventory Capacity 8 | 5 5 8 8 Average Capacity 6 | 5 5 5 8 Most Carried 8 | 5 5 8 8 Average Carried 5 | 3 4 4 7 Final Capacity 8 | 5 5 8 8 Final Carried 7 | 5 3 7 4 Class Distribution -------------------- 51% | Scavenger-Mutant 48% | Mutant Dominant Class ---------------- Mutant | -10/Materials Scavenger-Mutant | -9/Materials Scavenger-Mutant | -9/Storage Resources | -11 -10 -9 -9 ----------- Run | Yrd Mat Mat Sto Matter Collected 822 | 329 . 237 256 Remotely 147 | . . 147 . Salvage Created 1186 | 84 37 231 834 Parts 87 | 10 2 21 54 Haulers Intercepted . | . . . . Recyclers Shooed 1 | . . . 1 Parts Field Recycled . | . . . . Retrieved Matter . | . . . . Parts Self-Destructed . | . . . . Prevented . | . . . . Kills | -11 -10 -9 -9 ------- Run | Yrd Mat Mat Sto Combat Hostiles Destroyed 25 | 1 1 5 18 Guns 22 | 1 1 4 16 Cannons 3 | . . 1 2 Classes Destroyed 8 | 3 . 5 . Worker 4 | 1 . 1 2 Tunneler 1 | 1 . . . Recycler 1 | . . 1 . Operator 1 | . . 1 . Watcher 4 | . . 2 2 Swarmer 5 | . . 3 2 Grunt 11 | 1 1 . 9 Sentry 9 | . . 2 7 Best Kill Streak 6 | 2 1 4 6 Combat Bots Only 5 | 1 1 3 5 Max Kills in Single Turn 2 | 1 1 2 2 Gunslinging 1 | . . . 1 Exploded . | . . . . Melee . | . . . . Uniques/NPCs Destroyed . | . . . . Combat | -11 -10 -9 -9 -------- Run | Yrd Mat Mat Sto Hostile Shots Fired 283 | 5 55 51 172 Missed 84 | 1 14 9 60 Damage Taken 2332 | 45 536 383 1368 Core 615 | . 200 115 300 Absorbed by Shields . | . . . . Regen/Repaired (Parts) 23 | . 23 . . Core Remaining (%) 60 | 100 20 . . Volleys Fired 117 | 9 17 23 68 Largest 2 | 2 2 2 2 Hottest 100 | 60 60 100 85 Shots Fired 201 | 18 27 28 128 Gun 177 | 18 27 15 117 Cannon 16 | . . 5 11 Launcher . | . . . . Special 8 | . . 8 . Kinetic 120 | 9 10 12 89 Thermal 65 | 9 17 11 28 Explosive . | . . . . Electromagnetic 16 | . . 5 11 Robot Hit Streak 19 | 8 4 6 19 Robot Miss Streak 6 | 3 4 2 6 Penetration Max . | . . . . Secondary Targets 4 | . . . 4 Max Gunslinging Chain 1 | . . . 1 Shots Hit Robots 130 | 12 13 20 85 Core Hits 68 | 5 8 12 43 Critical Kills . | . . . . Critical Parts Destroyed . | . . . . Critical Strikes 1 | . . . 1 Burn 1 | . . . 1 Melee Attacks . | . . . . Impact . | . . . . Slashing . | . . . . Piercing . | . . . . Sneak Attacks . | . . . . Combat Hostiles . | . . . . Follow-up Attacks . | . . . . Damage Inflicted 2056 | 127 168 459 1302 Guns 1545 | 127 165 154 1099 Cannons 307 | . . 104 203 Explosions 81 | . . 81 . Melee . | . . . . Ramming 3 | . 3 . . Kinetic 1000 | 57 54 121 768 Thermal 746 | 70 111 234 331 Explosive . | . . . . Electromagnetic 307 | . . 104 203 Impact . | . . . . Slashing . | . . . . Piercing . | . . . . Highest Corruption 1 | . 1 . 1 Average Corruption 1 | . 1 . 1 Corruption Purged . | . . . . Corruption Blocked . | . . . . Effects 3 | . 1 . 2 Matter Fused 1 | . . . 1 Energy Discharges 1 | . 1 . . Data Loss (major) 1 | . . . 1 Overload Shots . | . . . . Overflow Damage 19 | . . 9 10 Projectiles 14 | . . 4 10 Explosions 5 | . . 5 . Melee . | . . . . Knockbacks . | . . . . Impact . | . . . . Kinetic . | . . . . Secondary . | . . . . Self-Inflicted Damage 36 | . 1 35 . Shots 1 | . . 1 . Rammed 1 | . 1 . . Targets Rammed 1 | . 1 . . Kicked . | . . . . Crushed . | . . . . Highest Temperature 205 | 64 75 44 205 Average Temperature 34 | 26 31 17 48 Received Heat Transfer 1041 | 24 318 . 699 Effects 3 | . . . 3 Interference 3 | . . . 3 Siege Activations . | . . . . Robots Corrupted . | . . . . Combat Hostiles . | . . . . Parts Fried 1 | . . 1 . Impact Corruptions . | . . . . Robots Melted . | . . . . Combat Hostiles . | . . . . Parts Melted 3 | 1 . 1 1 Heat Transferred 1578 | 150 250 375 803 Parts Sabotaged . | . . . . Parts Stolen . | . . . . Parts Stripped . | . . . . Power Chain Reactions 1 | . . 1 . Alert | -11 -10 -9 -9 ------- Run | Yrd Mat Mat Sto Peak Influence 613 | 30 44 175 613 Initial 19 | . 19 18 12 Average 132 | 6 27 80 277 Maximum Alert Level 2 | . . . 2 Low Security (%) 77 | 100 100 100 37 Level 1 12 | . . . 34 Level 2 10 | . . . 28 Level 3 . | . . . . Level 4 . | . . . . Level 5 . | . . . . High Security . | . . . . Max Security . | . . . . Squads Dispatched 6 | . . . 6 Investigation 1 | . . . 1 Extermination . | . . . . Reinforcement 3 | . . . 3 Assault . | . . . . Garrison 2 | . . . 2 Intercept . | . . . . Searches Triggered . | . . . . Construction Impeded 1 | . . . 1 Haulers Reinforced . | . . . . Active Scanning Responses . | . . . . Cargo Convoy Interrupts . | . . . . Stealth | -11 -10 -9 -9 --------- Run | Yrd Mat Mat Sto Distress Signals 5 | . 1 2 2 Communications Jammed . | . . . . Distress Signals . | . . . . Times Spotted 56 | 1 8 13 34 Peak Tracking Total 9 | 1 4 6 9 Tactical Retreats 5 | . 1 . 4 Traps | -11 -10 -9 -9 ------- Run | Yrd Mat Mat Sto Traps Triggered 2 | . . . 2 Indirectly . | . . . . Trap Hack Attempts . | . . . . Triggered . | . . . . Disarmed . | . . . . Reprogrammed . | . . . . Reused . | . . . . Traps Extracted . | . . . . Installed . | . . . . Triggered . | . . . . Machines | -11 -10 -9 -9 ---------- Run | Yrd Mat Mat Sto Machines Disabled . | . . . . Max in Single Turn . | . . . . Garrison Access 1 | . . . 1 Machines Repaired . | . . . . Machines Dismantled . | . . . . Machines Sabotaged . | . . . . Overloaded Fab Kills . | . . . . Hacking | -11 -10 -9 -9 --------- Run | Yrd Mat Mat Sto Machines Accessed 8 | . 1 3 4 Terminals 6 | . . 3 3 Fabricators . | . . . . Repair Stations 1 | . 1 . . Recycling Units . | . . . . Scanalyzers . | . . . . Garrison Access 1 | . . . 1 Total Hacks 20 | . 4 9 7 Successful 15 | . 2 8 5 Failed 5 | . 2 1 2 Catastrophic 1 | . . . 1 Database Lockouts . | . . . . Manual 1 | . . . 1 Terminals 15 | . . 9 6 Fabricators . | . . . . Repair Stations 4 | . 4 . . Recycling Units . | . . . . Scanalyzers . | . . . . Garrison Access 1 | . . . 1 Terminal Hacks 12 | . . 8 4 Record 6 | . . 5 1 Alert Level 5 | . . 2 3 Zone Layout 1 | . . 1 . Fabricator Hacks . | . . . . Repair Station Hacks 2 | . 2 . . Scan Component 1 | . 1 . . Repair 1 | . 1 . . Recycling Unit Hacks . | . . . . Scanalyzer . | . . . . Garrison Access Hacks 1 | . . . 1 Seal Access 1 | . . . 1 Unauthorized Hacks . | . . . . Terminals . | . . . . Fabricators . | . . . . Repair Stations . | . . . . Recycling Units . | . . . . Scanalyzers . | . . . . Garrison Access . | . . . . Data Cores Recovered 1 | . . 1 . Used . | . . . . Hacking Detections 5 | . 1 2 2 Full Trace Events 2 | . 1 . 1 Feedback Events 2 | . 1 . 1 Corruption 2 | . 1 . 1 Feedback Blocked . | . . . . Robot Schematics Acquired . | . . . . Robots Built . | . . . . Authchips . | . . . . Time . | . . . . Total Robot Build Rating . | . . . . Part Schematics Acquired . | . . . . Parts Built . | . . . . Authchips . | . . . . Time . | . . . . Total Part Build Rating . | . . . . Parts Repaired 1 | . 1 . . Time 26 | . 26 . . Parts Recycled . | . . . . Recycled Matter . | . . . . Retrieved Matter . | . . . . Retrieved Components . | . . . . Parts Scanalyzed . | . . . . Part Schematics Acquired . | . . . . Parts Damaged . | . . . . Bothacking | -11 -10 -9 -9 ------------ Run | Yrd Mat Mat Sto Used RIF Installer . | . . . . Robots Hacked . | . . . . Non-combat . | . . . . Combat . | . . . . Robot Hacks Applied . | . . . . Relay Couplers Released . | . . . . Fabnet Peak Effective % . | . . . . Robots Rewired . | . . . . Allies Hacked . | . . . . Hacks Repelled . | . . . . Allies | -11 -10 -9 -9 -------- Run | Yrd Mat Mat Sto Total Allies . | . . . . Largest Group . | . . . . Highest-Rated Group . | . . . . Highest-Rated Ally . | . . . . Total Orders . | . . . . Ally Attacks . | . . . . Total Damage . | . . . . Kills . | . . . . Allies Corrupted . | . . . . Allies Melted . | . . . . Intel | -11 -10 -9 -9 ------- Run | Yrd Mat Mat Sto Robot Analysis Total . | . . . . Derelict Logs Recovered . | . . . . Drone Launches . | . . . . Drone Recoveries . | . . . . Exploration | -11 -10 -9 -9 ------------- Run | Yrd Mat Mat Sto Turns Passed 1291 | 184 213 429 465 Spaces Moved 1214 | 128 210 431 445 Core 130 | 24 101 4 1 Treads . | . . . . Legs 156 | 104 52 . . Wheels 372 | . 57 315 . Hover 556 | . . 112 444 Flight . | . . . . Fastest Speed 45 | 50 50 45 45 Average Speed 66 | 106 75 72 45 Slowest Speed 200 | 120 120 200 200 Overloaded Moves . | . . . . Propulsion Burnouts . | . . . . Robots Hopped . | . . . . Cave-ins Triggered . | . . . . Exploration Rate (%) 29 | 7 31 23 58 Regions Visited 3 Branch Regions 1 Pre-discovered Areas . | . . . . Known Exits Taken . | . . . . Unknown Exits Taken 3 | 1 1 1 . Scrap Searched . | . . . . Spaces Dug . | . . . . Terrain Destroyed 8 | . . 8 . Melee . | . . . . Projectile 2 | . . 2 . AOE 6 | . . 6 . Terrain Rammed . | . . . . Walls Destroyed . | . . . . Machines Disabled . | . . . . Actions | -11 -10 -9 -9 --------- Run | Yrd Mat Mat Sto Total 1488 | 161 238 506 583 Wait 35 | . 4 . 31 Move 1211 | 127 209 430 445 Hop . | . . . . Pick Up 38 | 14 2 18 4 Fast Attach 11 | . 1 7 3 Attach 28 | 6 4 11 7 Detach . | . . . . Swap 11 | 1 . 4 6 Drop 20 | 4 . 13 3 Fire 117 | 9 17 23 68 Melee . | . . . . Ram 1 | . 1 . . Kick . | . . . . Crush . | . . . . Escape Stasis 16 | . . . 16 Rewire . | . . . . Trap . | . . . . Miscellaneous . | . . . . Route ------- -11/Scrapyard -10/Materials -9/Materials -9/Storage History --------- Turn | Location | Event 2 | -11/Scrapyard | Met Revision 17 144 | -11/Scrapyard | Discovered new exit (range 8) 185 | -11/Scrapyard | Entered Materials 257 | -10/Materials | Repaired Aluminum Leg? 315 | -10/Materials | Core integrity fell below 50% 318 | -10/Materials | Build established: Mutant 328 | -10/Materials | Lost 4 parts (1p1n2w) 374 | -10/Materials | Discovered new exit (range 16) 398 | -10/Materials | Entered another Materials area 398 | -9/Materials | Evolved 2 slots: Propulsion x1, Utility x1 466 | -9/Materials | Discovered new exit (range 15) 575 | -9/Materials | Lost 4 parts (1p1n2w) 827 | -9/Materials | Entered Storage 1043 | -9/Storage | Garrison activated, responded to threat 1119 | -9/Storage | Core integrity fell below 50% 1192 | -9/Storage | Build established: Scavenger-Mutant 1252 | -9/Storage | Core integrity fell below 20% 1286 | -9/Storage | Lost 9 parts (1p4n1u3w) 1292 | -9/Storage | Destroyed by G-47 Trooper with Particle Gun Last Messages --------------- K-01 Serf collects debris. G-34 Mercenary destroyed. K-01 Serf collects debris. Hvy. Assault Rifle destroyed. R-06 Scavenger collects Aluminum Leg. K-01 Serf collects debris. Critical hit (Burn: +37). K-01 Serf collects debris. Airjet destroyed. G-34 Mercenary destroyed. Critical hit (Burn: +37). K-01 Serf collects debris. Overheating: System interference. Lgt. Assault Rifle temporarily disabled. Spread Laser temporarily disabled. K-01 Serf collects debris. G-34 Mercenary destroyed. Switching to secondary target: G-47 Trooper. K-01 Serf collects debris. K-01 Serf destroyed. Map ----- +----------------------------------------------------+ | ???????????????????????????????######## ##%####+## | | ??####+##########################???######/#### #? | | ] ##### ## #? | | !%= / """ ##^#? | | * ##### """ ## ## | | ????????#########+#### #?#"" """ # | | ????????????# # #?#"Y / %% | | ????????????# """""" + #?#"" """ # | | ????????????# "????" ########## #?### R" ##### | | ????????????# "????" #????# # #???# """ # | | ????????????# """""" #????# # #???# ## "" | | ????????????# #????# #+############### "" | | ????????????# #????#^ # #??# "" | | ????????????# #????# # #??# | | ????????????# #????# + #??#### | | ????????????##########????# # #??# | | ??????????????????????????# %!# #??# | | ??????????????????????????# ##############??# | | ?????????????????????????##= ##??????????????# | | ?????????????#############*% %!#??????????????# "" | | ??????????? =[ #??????????????# "? | | ??????????? #??????????????# "? | | ??????????? ! #??????????????# "" | | ????????????########+#####=g= #??????????????# | | ?????????????????? ????##g#####??????????????#### | | ???????????????? ??????#@%#??????????????????# | | ??????????????? ????????#%!%===???????????????# | | ????????????????????????#=="===#??????????????# | | ????????????????????????##T#####??????????????# | | ?????????????????????????###??????????????????# ! | | ??????????????????????????????????????????????# | | ??????????????????????????????????????????????# | | ??????????????????????????????????????????????# | | ??????????????????????????????????????????????# | | ??????????????????????????????????????????????#### | | ?????????????????????????????????????????????????? | | ?????????????????????????????????????????????????? | | ?????????????????????????????????????????????????? | | ?????????????????????????????????????????????????? | | ?????????????????????????????????????????????????? | | ?????????????????????????????????????????????????? | | ?????????????????????????????????????????????????? | | ?????????????????????????????????????????????????? | | ?????????????????????????????????????????????????? | | ?????????????????????????????????????????????????? | | ?????????????????????????????????????????????????? | | ?????????????????????????????????????????????????? | | | | | | | +----------------------------------------------------+ Best States ------------- Heat Dissipation 38 Energy Generation 12 Energy Capacity 265 Matter Stores 350 Matter Capacity 350 Sight Range 18 Terrain Scan Density 10 Evasion (%) 56 Item Schematics ----------------- None Robot Schematics ------------------ None Fabricated ------------ Nothing Alien Tech Used ----------------- None Achievements -------------- Risk Taker Use The Force Challenges ------------ None Game ------ Seed LinearGrenadeGravjet Manual? 0 Play Time 00:51:37 Cumulative 1.8 hours Start 2024.04.07 @ 12:17:00 End 2024.04.07 @ 20:07:10 Sessions 9 Manual Loads 0 Difficulty Rogue Special Mode None Game No. 2 Rogue 2 Adventurer 0 Explorer 0 Win Type - Total 0 Types 0/0/0/0/0/0/0/0/0 Lore% 1 Gallery% 3 Achievement% 3 Wizard Run 0 Options --------- Layout 1 ASCII 0 Keyboard 0 Movement Mouse Keybinds 0 Fullscreen 1 Font 24/Smallcaps Map View 50x35 Zoom Use 0% Tactical HUD 0 Map Filters NONE Filters NONE Steam 0 RUN: 464cec4f-4190-44d4-beb7-a93137f2095d